fUSD/lending_fUSD_20240525
["ID","MTS","AMOUNT","RATE_DAILY","PERIOD"]
[327921326,1716633031731,-263.69,0.00026969,2]
[327921327,1716633031741,-480.0,0.00027048,2]
[327921328,1716633031751,-250.0,0.00027186,2]
[327921329,1716633031760,-849.72,0.00027288,2]
[327921330,1716633031769,-150.0,0.00027288,2]
[327921331,1716633031779,-150.0,0.00027288,2]
[327921332,1716633031789,-352.18,0.00027288,2]
[327921333,1716633031799,-421.16,0.00027288,2]
[327921334,1716633031809,-352.18,0.00027288,2]
[327921335,1716633031818,-150.0,0.00027288,2]
[327921336,1716633031828,-150.0,0.00027288,2]
[327921337,1716633031837,-304.05,0.00027288,2]
[327921338,1716633031847,-150.0,0.00027288,2]
[327921339,1716633031857,-150.0,0.00027288,2]
[327921340,1716633031866,-163.63,0.00027288,2]
[327921341,1716633031876,-352.18,0.00027288,2]
[327921342,1716633031885,-421.16,0.00027288,2]
[327921343,1716633031896,-421.16,0.00027288,2]
[327921344,1716633031906,-163.63,0.00027288,2]
[327921345,1716633031916,-352.18,0.00027288,2]
[327921346,1716633031925,-150.0,0.00027288,2]
[327921347,1716633031935,-1898.95,0.00027294,2]
[327921348,1716633031944,-154.72200276,0.00027309,2]
[327921349,1716633031953,-2000.0,0.000274,2]
[327921350,1716633031964,-169.78,0.00027412,2]
[327921351,1716633031973,-520.0,0.0002758,2]
[327921352,1716633031983,-2273.56,0.00027701,2]
[327921353,1716633031992,-299.99,0.00027804,12]
[327921354,1716633032002,-167.0,0.00027817,2]
[327921355,1716633032012,-352.18,0.00027978,2]
[327921356,1716633032022,-150.0,0.00027978,2]
[327921357,1716633032031,-150.0,0.00027978,2]
[327921358,1716633032041,-540.09314212,0.00028,7]
[327921359,1716633032118,-150.0,0.00025611,2]
[327921360,1716633032128,-2409.90685788,0.00028,7]
[327921361,1716633032138,-10840.49027743,0.00028,15]
[327921362,1716633032148,-800.0,0.00028082,2]
[327921363,1716633032159,-150.0,0.0002811,2]
[327921364,1716633032169,-150.0,0.0002811,2]
[327921365,1716633032178,-418.38,0.0002811,2]
[327921366,1716633032187,-150.0,0.0002811,2]
[327921367,1716633032209,-352.18,0.0002811,2]
[327921368,1716633032219,-150.0,0.0002811,2]
[327921369,1716633032230,-150.0,0.0002811,2]
[327921370,1716633032240,-352.18,0.0002811,2]
[327921371,1716633032251,-352.18,0.0002811,2]
[327921372,1716633032260,-352.18,0.0002811,2]
[327921373,1716633032272,-352.18,0.0002811,2]
[327921374,1716633032282,-231.18,0.0002811,2]
[327921375,1716633032292,-171.85,0.00028147,2]
[327921376,1716633032302,-4842.05,0.00028304,2]
[327921377,1716633032311,-4801.41,0.00028577,2]
[327921378,1716633032321,-961.7453,0.00028679,2]
[327921379,1716633032330,-161.27564038,0.00028679,2]
[327921380,1716633032340,-40240.2027,0.0002868,2]
[327921381,1716633032350,-1149.0,0.0002868,2]
[327921382,1716633032360,-2369.37,0.0002877,2]
[327921383,1716633032369,-143034.65091071,0.00028779,2]
[327921384,1716633032383,-6076.84098929,0.00028779,2]
[327921385,1716633032393,-1000.0,0.00028779,2]
[327921386,1716633032403,-1000.0,0.00028779,2]
[327921387,1716633032412,-1000.0,0.00028779,2]
[327921388,1716633032422,-1000.0,0.00028779,2]
[327921389,1716633032432,-322.7571644,0.00028779,2]
[327921390,1716633032442,-1184.03168978,0.00028779,2]
[327921391,1716633032452,-3552.43904076,0.0002878,2]
[327921392,1716633032464,-2499.17371178,0.0002878,2]
[327921393,1716633032473,-870.49,0.00028795,2]
[327921394,1716633032483,-415.94,0.00028795,2]
[327921395,1716633032492,-415.94,0.00028795,2]
[327921396,1716633032500,-870.49,0.00028795,2]
[327921397,1716633032510,-870.49,0.00028795,2]
[327921398,1716633032519,-415.94,0.00028795,2]
[327921399,1716633032529,-870.49,0.00028795,2]
[327921400,1716633032538,-415.94,0.00028795,2]
[327921401,1716633032548,-415.94,0.00028795,2]
[327921402,1716633032558,-870.49,0.00028795,2]
[327921403,1716633032569,-415.94,0.00028795,2]
[327921404,1716633032579,-870.49,0.00028795,2]
[327921405,1716633032590,-415.94,0.00028795,2]
[327921406,1716633032599,-1378.22,0.00028795,2]
[327921407,1716633032609,-415.94,0.00028795,2]
[327921408,1716633032619,-415.94,0.00028795,2]
[327921409,1716633032628,-2369.37,0.00028864,2]
[327921410,1716633032638,-2369.37,0.00028864,2]
[327921411,1716633032648,-2369.37,0.00028864,2]
[327921412,1716633032657,-2369.37,0.00028864,2]
[327921413,1716633032667,-306674.57565773,0.00028874,2]
[327921414,1716633032676,-227.90751567,0.00028878,2]
[327921415,1716633032686,-241.79509581,0.00028879,2]
[327921416,1716633032696,-151.0,0.00028879,7]
[327921417,1716633032708,-151.0,0.00028879,7]
[327921418,1716633032719,-151.0,0.00028879,7]
[327921419,1716633032729,-151.0,0.00028879,7]
[327921420,1716633032739,-154.525546,0.00028879,7]
[327921421,1716633032749,-151.0,0.00028879,7]
[327921422,1716633032759,-151.0,0.00028879,7]
[327921423,1716633032770,-155.288909,0.00028879,7]
[327921424,1716633032780,-151.0,0.00028879,7]
[327921425,1716633032789,-151.0,0.00028879,7]
[327921426,1716633032800,-153.66752,0.00028879,7]
[327921427,1716633032811,-153.66752,0.00028879,7]
[327921428,1716633032821,-151.0,0.00028879,7]
[327921429,1716633032831,-151.0,0.00028879,7]
[327921430,1716633032840,-4833.52,0.0002888,2]
[327921431,1716633032850,-58736.96799606,0.0002888,2]
[327921441,1716633037649,-183.22990683,0.00028864,2]
[327921442,1716633037659,-5083.50004675,0.00028879,15]
[327921443,1716633037670,-1017.8135551,0.00028879,15]
[327921444,1716633037683,-876.16594478,0.00028879,15]
[327921445,1716633037695,-443.51682789,0.00028879,15]
[327921446,1716633038642,-275.96458678,0.00028879,15]
[327921447,1716633038654,-1235.47644,0.00028879,15]
[327921448,1716633038775,-328.92787868,0.00028879,15]
[327921449,1716633038788,-623.62688,0.00028879,15]
[327921474,1716633040487,-515.1,0.00028878,2]
[327921475,1716633040500,-597.4544921,0.00028878,2]
[327921476,1716633040513,-5878.8,0.00028878,2]
[327921480,1716633040766,-358.19746011,0.00028878,2]
[327921481,1716633040780,-472.10658164,0.00028878,2]
[327921482,1716633040792,-3487.03577132,0.00028878,2]
[327921538,1716633043493,-11445.17104365,0.00028878,2]
[327921539,1716633043506,-1708.02127925,0.00028878,2]
[327921540,1716633043517,-2459.04975406,0.00028878,2]
[327921541,1716633043530,-2029.6387055,0.00028878,2]
[327921542,1716633043541,-461608.04945785,0.00028878,2]
[327921572,1716633045828,-251.08399688,0.0002878,2]
[327921575,1716633045838,-39307.56376042,0.00028878,2]
[327921599,1716633168708,651.81,0.00031,120]
[327921600,1716633346079,-3256147.4015,0.00013,2]
[327921630,1716634234154,-1999.63053156,0.00012898,2]
[327921632,1716634234164,-200.0,0.00012899,2]
[327921633,1716634234174,-9228.62141657,0.000129,2]
[327921634,1716634234183,-319.27086159,0.000129,2]
[327921635,1716634234192,-2155.44850367,0.000129,2]
[327921637,1716634234204,-531.80120502,0.000129,2]
[327921639,1716634234215,-569.15274534,0.000129,2]
[327921641,1716634234226,-184.83427169,0.000129,2]
[327921643,1716634234237,-1298.6029437,0.000129,2]
[327921645,1716634234246,-1978.08911021,0.00012997,2]
[327921646,1716634234258,-856.26166783,0.00012997,2]
[327921647,1716634234267,-594.93183215,0.00012999,3]
[327921666,1716634239699,-468.69231367,0.00012999,3]
[327921667,1716634239710,-190.30768533,0.00012999,2]
[327921669,1716634239723,-529.01250575,0.00012999,2]
[327921670,1716634239738,-335.125,0.00012999,2]
[327921671,1716634239749,-424.88047589,0.00012999,2]
[327921672,1716634239761,-780.73604711,0.00012999,2]
[327921673,1716634239772,-1991.99543765,0.00012999,2]
[327921674,1716634239784,-35122.85376069,0.00012999,2]
[327921681,1716634240815,-940.87499843,0.00012999,2]
[327921685,1716634240827,-6234.30596565,0.00012999,2]
[327921693,1716634241025,-1.373e-05,0.00012999,2]
[327921694,1716634241037,-10561.92876006,0.00012999,2]
[327921712,1716634243160,-523.08432371,0.00012999,2]
[327921732,1716634247980,-80741.045026,0.00012999,2]
[327921733,1716634247992,-64017.57839394,0.00013,2]
[327921734,1716634248004,-251336.27581187,0.00013,2]
[327921735,1716634248015,-2963.15140781,0.00013,2]
[327921736,1716634248027,-13888.8,0.00013,2]
[327921737,1716634248039,-255.95603174,0.00013,2]
[327921751,1716635353178,-212.26782238,0.00011696,2]
[327921779,1716635431964,-211.51288702,0.00011696,2]
[327921780,1716635431973,-252.44625317,0.00012868,2]
[327921781,1716635432199,-936.97829833,0.000129,2]
[327921782,1716635432209,-150.0,0.00012999,2]
[327921783,1716635432219,-15614.06251648,0.00013,2]
[327921784,1716635432232,-800.04335537,0.00013,2]
[327921785,1716635432244,-371.6925449,0.00013,2]
[327921786,1716635432255,-338.25458753,0.00013,2]
[327921787,1716635433195,-872.67905712,0.00013,2]
[327921788,1716635433207,-1390.06,0.00013,2]
[327921789,1716635433219,-1399.43462293,0.00013,2]
[327921790,1716635433230,-293.38419511,0.00013,2]
[327921791,1716635433241,-359.96486799,0.00013,2]
[327921792,1716635433253,-958.2,0.00013,2]
[327921813,1716635439137,-4470.90884912,0.00013,2]
[327921814,1716635439268,-1698.0002,0.00013,2]
[327921815,1716635439280,-11437.81967512,0.00013,2]
[327921824,1716635440778,-7052.791525,0.00013,2]
[327921825,1716635441204,-496995.41125055,0.00013,2]
[327921826,1716635441330,-1459.4082901,0.00013,2]
[327921827,1716635441469,-19786.2820359,0.00013,2]
[327921828,1716635441498,-178081.09369044,0.00013,2]
[327921829,1716635441511,-303.78677249,0.00013,2]
[327921832,1716635443469,-3843.32882048,0.00013,2]
[327921833,1716635443481,-583.80921911,0.00013,2]
[327921834,1716635443770,-139000.0,0.00013,2]
[327921840,1716635444224,-1073.3612221,0.00013,2]
[327921875,1716635448637,-258.61395977,0.00011699,2]
[327921876,1716635448647,-234.64324131,0.00013,2]
[327921877,1716635448659,-1777.7702769,0.00013,2]
[327921878,1716635448670,-1325.215,0.00013,2]
[327921879,1716635449042,-6950.882,0.00013,2]
[327921898,1716635513106,-1379.76289,0.0001287,2]
[327921899,1716635513133,-782.6446222,0.00012998,2]
[327921900,1716635513160,-404.62339101,0.00012998,2]
[327921901,1716635513186,-321.83343734,0.00012998,2]
[327921902,1716635513212,-1044.98682893,0.00012998,2]
[327921903,1716635513237,-6468.41491597,0.00012998,2]
[327921904,1716635513262,-197.95217658,0.00012998,2]
[327921905,1716635513287,-653.01402305,0.00012999,2]
[327921906,1716635513315,-1024907.76771492,0.00013,2]
[327921907,1716635970268,-268.51121267,0.00012705,2]
[327921908,1716635970294,-871.48878733,0.00012705,2]
[327921932,1716636632242,-1273.86928001,0.00012377,2]
[327921933,1716636632253,-150.0,0.00012377,2]
[327921934,1716636632262,-1116.90223144,0.00012377,2]
[327921935,1716636632278,-1557.25275633,0.00012377,2]
[327921936,1716636632289,-523.91853483,0.00012378,2]
[327921937,1716636632299,-921.40849684,0.00012378,2]
[327921938,1716636632310,-508.18874725,0.00012378,2]
[327921939,1716636632322,-3171.96935448,0.00012378,2]
[327921940,1716636632331,-507.61,0.00012393,2]
[327921941,1716636632341,-380.70037141,0.00012635,2]
[327921942,1716636632350,-1566.72319261,0.00012657,2]
[327921943,1716636632360,-3381.74264492,0.00012704,2]
[327921944,1716636632369,-4357.33357024,0.00012705,2]
[327921945,1716636632402,-531.77659901,0.00012705,2]
[327921946,1716636632464,-3833.80448237,0.00012705,2]
[327921947,1716636632475,-530.0,0.00012705,2]
[327921948,1716636632487,-2784.48495281,0.00012705,2]
[327921949,1716636632499,-4476.44813225,0.00012705,2]
[327921950,1716636632576,-517.0,0.00012705,2]
[327921972,1716636638369,-497.41471867,0.00012705,2]
[327921973,1716636638381,-11908.2929074,0.00012705,2]
[327921974,1716636638553,-2601.0,0.00012705,2]
[327921975,1716636638566,-347.93,0.00012705,2]
[327921976,1716636638578,-695.85,0.00012705,2]
[327921977,1716636638589,-698.26757,0.00012705,2]
[327921978,1716636638601,-700.0,0.00012705,2]
[327921989,1716636641402,-584.00738402,0.00012705,2]
[327921990,1716636641415,-3662.65,0.00012705,2]
[327921991,1716636642487,-111828.58273103,0.00012705,2]
[327921992,1716636642499,-13049.01032421,0.00012705,2]
[327921993,1716636642673,-301.394501,0.00012705,2]
[327922021,1716636643818,-500.32600203,0.00012705,2]
[327922022,1716636644085,-2601.04089133,0.00012705,2]
[327922023,1716636644100,-170573.75149846,0.00012705,2]
[327922024,1716636644111,-3600.37767569,0.000129,2]
[327922025,1716636644122,-180.74659829,0.000129,2]
[327922026,1716636644134,-327.80935402,0.000129,2]
[327922027,1716636644144,-344.59163649,0.00012998,2]
[327922028,1716636644155,-157.8016636,0.00012998,2]
[327922029,1716636644165,-623.795218,0.00012998,2]
[327922030,1716636644175,-361.33774906,0.00012998,2]
[327922031,1716636644186,-999.99,0.00012998,2]
[327922032,1716636644195,-655.3037065,0.00012998,2]
[327922033,1716636644206,-1003.64939934,0.00012998,2]
[327922034,1716636644219,-4748.08552782,0.00012998,2]
[327922035,1716636644228,-237.48860909,0.00012998,2]
[327922036,1716636644238,-327.02252959,0.00012998,2]
[327922037,1716636644248,-4365.51239636,0.00012998,2]
[327922038,1716636644259,-1064.51850023,0.00012998,2]
[327922039,1716636644268,-155.00396991,0.00012998,2]
[327922040,1716636644278,-409.95221642,0.00012999,2]
[327922041,1716636644287,-400.0,0.00012999,2]
[327922042,1716636644299,-1067.18004523,0.00012999,2]
[327922043,1716636644315,-155.60459176,0.00012999,2]
[327922044,1716636644330,-239278.80891712,0.00013,2]
[327922045,1716636644340,-324240.60522502,0.00013,2]
[327922046,1716636644354,-1000.0,0.00013,2]
[327922047,1716636644526,-29300.97269582,0.00013,2]
[327922048,1716636644539,-905.73516071,0.00013,2]
[327922055,1716636646406,-1164.00064794,0.00012998,2]
[327922057,1716636646416,-96769.84684442,0.00013,2]
[327922059,1716636646431,-3774.49999997,0.00013,2]
[327922072,1716636646807,-8619.72705,0.00013,2]
[327922078,1716636863181,200.0,0.00016438,7]
[327922079,1716637611229,-162.76717028,0.00011758,2]
[327922112,1716637832306,-267.23393513,0.00010303,2]
[327922113,1716637832318,-255.54606487,0.00010303,2]
[327922114,1716637832328,-1585.02393947,0.00011757,2]
[327922115,1716637832338,-777.38175484,0.00011758,2]
[327922116,1716637832347,-162.0,0.00012213,2]
[327922117,1716637832357,-50.8615734,0.00012221,2]
[327922118,1716637832369,-199.1384266,0.00012221,2]
[327922119,1716637832379,-200.0,0.00012221,2]
[327922120,1716637832661,-250.0,0.00012271,2]
[327922121,1716637832674,-3699.75,0.00012281,2]
[327922122,1716637832683,-150.0,0.00012557,2]
[327922123,1716637832692,-7199.85,0.00012558,2]
[327922124,1716637832701,-522.78,0.00012567,2]
[327922125,1716637832711,-3981.3,0.0001259,2]
[327922126,1716637832722,-167.11880784,0.00012869,2]
[327922127,1716637832731,-1186.61983,0.0001287,2]
[327922128,1716637832740,-500.0,0.00012895,2]
[327922129,1716637832749,-500.0,0.00012896,2]
[327922130,1716637832758,-3170.8,0.00012899,2]
[327922131,1716637832770,-12013.0767,0.00012899,2]
[327922132,1716637832780,-3300.34620267,0.000129,2]
[327922133,1716637832790,-327.55958716,0.000129,2]
[327922134,1716637832799,-1520.6250491,0.00012989,2]
[327922135,1716637832809,-1975.2168675,0.00012989,2]
[327922136,1716637832818,-68872.577332,0.00012989,2]
[327922138,1716637832827,-1318.8505839,0.00012991,2]
[327922140,1716637832836,-1117.0761187,0.00012991,2]
[327922142,1716637832846,-915.3016534,0.00012991,2]
[327922144,1716637832855,-713.5271882,0.00012991,2]
[327922146,1716637832864,-1714.3950903,0.00012991,2]
[327922148,1716637832873,-1453.5733132,0.00012991,2]
[327922149,1716637832882,-1192.751536,0.00012991,2]
[327922151,1716637832891,-931.9297589,0.00012991,2]
[327922153,1716637832900,-20863.33595452,0.00012991,2]
[327922156,1716637832916,-4591.04215075,0.00012991,2]
[327922159,1716637832931,-7113.2982,0.00012991,2]
[327922160,1716637832942,-2132.32698548,0.00012991,2]
[327922173,1716637838230,-25078.14582335,0.00012991,2]
[327922174,1716637838240,-50683.7208962,0.00012991,2]
[327922175,1716637838250,-41589.2926783,0.00012991,2]
[327922176,1716637838260,-32494.8644604,0.00012991,2]
[327922177,1716637838270,-883.23060995,0.00012998,2]
[327922178,1716637838279,-392.12100923,0.00012998,2]
[327922179,1716637838289,-162.76290291,0.00012998,2]
[327922180,1716637838298,-873.126,0.00012999,2]
[327922181,1716637838308,-281.81474394,0.00012999,2]
[327922182,1716637838318,-155.56442312,0.00012999,2]
[327922183,1716637838327,-20134.06226472,0.00012999,2]
[327922184,1716637838337,-204.60375302,0.00012999,2]
[327922185,1716637838346,-240.99173841,0.00012999,2]
[327922186,1716637838356,-204.78051809,0.00012999,2]
[327922187,1716637838365,-782.6446222,0.00012999,2]
[327922188,1716637838375,-2625.02809116,0.00012999,2]
[327922189,1716637838384,-450.38671635,0.00012999,2]
[327922190,1716637838393,-193.50479953,0.00012999,2]
[327922191,1716637838402,-2459.12867147,0.00012999,2]
[327922192,1716637838412,-190856.95489108,0.00013,2]
[327922193,1716637838436,-479.24999973,0.00013,2]
[327922194,1716637838452,-8313.68225167,0.00013,2]
[327922195,1716637838497,-1814.56851,0.00013,2]
[327922197,1716637838509,-9648.55496839,0.00013,2]
[327922199,1716637838520,-7447.98587008,0.00013,2]
[327922221,1716637840752,-497.0,0.00013,2]
[327922222,1716637840765,-772.72,0.00013,2]
[327922223,1716637841838,-7550.84398341,0.00013,2]
[327922224,1716637841848,-43290.17656408,0.00013,2]
[327922225,1716637841885,-380.72348517,0.00013,2]
[327922226,1716637841896,-26118.332225,0.00013,2]
[327922227,1716637841908,-739.85935227,0.00013,2]
[327922252,1716637843260,-7050.2796591,0.00013,2]
[327922255,1716637843536,-548489.28291857,0.00013,2]
[327922260,1716637843549,-205167.20881472,0.00013,2]
[327922264,1716637843561,-951.40599206,0.00013,2]
[327922267,1716637843572,-1834.6164797,0.00013,2]
[327922269,1716637843608,-1625.7938459,0.00013,2]
[327922270,1716637843619,-1835.89565874,0.00013,2]
[327922271,1716637843631,-388.03735278,0.00013,2]
[327922272,1716637844115,-739.01698788,0.00013,2]
[327922299,1716637844266,-4041.50268736,0.00013,2]
[327922524,1716637846451,-5399.5999,0.00013,2]
[327922527,1716637846464,-1272.47334836,0.00013,2]
[327922557,1716637846739,-3453.83226764,0.00013,2]
[327922710,1716638957097,-212.26782238,0.00010249,2]
[327922721,1716639031423,-258.23217762,0.00010249,2]
[327922722,1716639031433,-258.61395977,0.00011698,2]
[327922723,1716639031443,-200.8167781,0.00011758,2]
[327922724,1716639031452,-150.0,0.00012092,2]
[327922725,1716639031461,-179.92450408,0.00012098,2]
[327922726,1716639031473,-70.07549592,0.00012098,2]
[327922727,1716639031483,-250.0,0.00012098,2]
[327922728,1716639031492,-202.47777939,0.00012132,2]
[327922729,1716639031503,-2196.82305675,0.00012132,2]
[327922730,1716639031518,-316.51916386,0.00012132,2]
[327922731,1716639031527,-339.0879602,0.00012137,2]
[327922732,1716639031560,-561.51132701,0.00012137,2]
[327922733,1716639031764,-528.592,0.00012137,2]
[327922734,1716639031836,-1114.24720997,0.00012137,2]
[327922735,1716639031848,-1793.88919344,0.00012137,2]
[327922736,1716639031859,-19562.67230938,0.00012137,2]
[327922737,1716639031869,-171.21,0.00012166,2]
[327922738,1716639031878,-177.4,0.00012194,2]
[327922739,1716639031887,-470.5,0.00012513,2]
[327922740,1716639031896,-1000.0,0.00012787,2]
[327922741,1716639031906,-177.4,0.0001283,2]
[327922742,1716639031916,-339.17922691,0.00012868,2]
[327922743,1716639031927,-500.0,0.00012896,2]
[327922744,1716639031939,-900.0397,0.00012898,2]
[327922745,1716639031948,-3084.6946469,0.000129,2]
[327922746,1716639031961,-23744.89209576,0.000129,2]
[327922747,1716639031980,-6613.54318821,0.000129,2]
[327922749,1716639032000,-14904.60876913,0.000129,2]
[327922751,1716639032010,-17781.9431,0.000129,2]
[327922753,1716639032020,-3158.61504409,0.000129,2]
[327922754,1716639032031,-4535.68724431,0.000129,2]
[327922755,1716639032041,-156.48510114,0.000129,2]
[327922756,1716639032050,-179.43670754,0.000129,2]
[327922757,1716639032060,-5811.79208887,0.000129,2]
[327922758,1716639032069,-327.55958716,0.000129,2]
[327922760,1716639032079,-2625.02809116,0.00012986,2]
[327922761,1716639032088,-912.7494048,0.00012989,2]
[327922762,1716639032097,-4421.8510894,0.00012989,2]
[327922763,1716639032107,-188.11098371,0.0001299,2]
[327922764,1716639032116,-152.98,0.0001299,2]
[327922765,1716639032125,-152.98,0.0001299,2]
[327922766,1716639032134,-152.98,0.0001299,2]
[327922767,1716639032143,-152.98,0.0001299,2]
[327922768,1716639032153,-152.98,0.0001299,2]
[327922769,1716639032162,-152.98,0.0001299,2]
[327922770,1716639032172,-152.98,0.0001299,2]
[327922771,1716639032181,-152.98,0.0001299,2]
[327922772,1716639032191,-152.98,0.0001299,2]
[327922773,1716639032201,-152.98,0.0001299,2]
[327922774,1716639032210,-152.98,0.0001299,2]
[327922775,1716639032220,-882.7265168,0.00012991,2]
[327922776,1716639032229,-852.7036289,0.00012991,2]
[327922777,1716639032239,-822.680741,0.00012991,2]
[327922778,1716639032249,-792.6578531,0.00012991,2]
[327922779,1716639032259,-4286.5983114,0.00012991,2]
[327922780,1716639032268,-4151.3455333,0.00012991,2]
[327922781,1716639032278,-4016.0927552,0.00012991,2]
[327922782,1716639032288,-3880.8399772,0.00012991,2]
[327922783,1716639032298,-883.23060995,0.00012998,2]
[327922784,1716639032307,-724.95541199,0.00012998,2]
[327922785,1716639032317,-450.38671635,0.00012998,2]
[327922786,1716639032326,-827.48757697,0.00012998,2]
[327922787,1716639032335,-155.24936629,0.00012998,2]
[327922788,1716639032345,-204.60375302,0.00012998,2]
[327922789,1716639032354,-204.78051809,0.00012998,2]
[327922790,1716639032363,-240.99173841,0.00012998,2]
[327922791,1716639032372,-20134.06226472,0.00012998,2]
[327922792,1716639032381,-155.56442312,0.00012998,2]
[327922793,1716639032391,-281.81474394,0.00012998,2]
[327922794,1716639032400,-162.76290291,0.00012998,2]
[327922795,1716639032409,-392.12100923,0.00012998,2]
[327922796,1716639032419,-1038.72907891,0.00012998,2]
[327922797,1716639032428,-193.50479953,0.00012999,2]
[327922798,1716639032438,-4918.25734294,0.00012999,2]
[327922799,1716639032447,-10561.93,0.00012999,2]
[327922800,1716639032456,-150007.03206159,0.00013,2]
[327922801,1716639032469,-670.28116184,0.00013,2]
[327922802,1716639032480,-1865.69249295,0.00013,2]
[327922803,1716639032491,-2253.76645182,0.00013,2]
[327922812,1716639037461,-202.63970522,0.000129,2]
[327922813,1716639037471,-617.96019478,0.00013,2]
[327922814,1716639037517,-224937.37000042,0.00013,2]
[327922815,1716639037527,-94290.35368772,0.00013,2]
[327922816,1716639037540,-485.76601587,0.00013,2]
[327922817,1716639037552,-585.89428871,0.00013,2]
[327922818,1716639037609,-3970.93516203,0.00013,2]
[327922819,1716639037620,-729.5377189,0.00013,2]
[327922856,1716639040923,-451.22592,0.00013,2]
[327922857,1716639040994,-3141.49994,0.00013,2]
[327922875,1716639042482,-4984.73860078,0.00013,2]
[327922877,1716639042547,-469.9575146,0.00013,2]
[327922878,1716639042628,-7114.96330369,0.00013,2]
[327922904,1716639043502,-2238.91743514,0.00013,2]
[327922905,1716639043517,-5336.06145055,0.00013,2]
[327922906,1716639043529,-2915.07969939,0.00013,2]
[327922907,1716639043541,-2684.28735737,0.00013,2]
[327922908,1716639043552,-79781.04745402,0.00013,2]
[327922909,1716639043565,-1776.25726357,0.00013,2]
[327922911,1716639045553,-2421.74963703,0.00013,2]
[327922912,1716639045571,-2588.70656164,0.00013,2]
[327922914,1716639046401,-164.6281686,0.00012869,2]
[327922915,1716639046411,-3577.37183137,0.00013,2]
[327923009,1716640237646,-423.7807094,0.00010437,2]
[327923011,1716640237656,-500.51,0.00010438,2]
[327923012,1716640237665,-1000.0,0.00012288,2]
[327923013,1716640237675,-13759.03,0.0001232,2]
[327923014,1716640237684,-250.0,0.0001232,2]
[327923015,1716640237693,-250.0,0.00012329,2]
[327923016,1716640237703,-2561.89,0.00012399,2]
[327923017,1716640237712,-270.27,0.00012412,2]
[327923018,1716640237722,-170.49,0.00012458,2]
[327923019,1716640237731,-500.51,0.00012702,2]
[327923020,1716640237740,-1000.0,0.000129,2]
[327923021,1716640237750,-5196.67,0.000129,2]
[327923022,1716640237760,-150.99,0.000129,2]
[327923023,1716640237769,-2500.0,0.000129,2]
[327923024,1716640237779,-2895.39712374,0.000129,2]
[327923025,1716640237788,-325.32338628,0.000129,2]
[327923026,1716640237799,-671.1079835,0.00012989,2]
[327923027,1716640237808,-4822.13657678,0.00012989,2]
[327923028,1716640237832,-5540.83753418,0.00012989,2]
[327923029,1716640237863,-3912.70000001,0.00012989,2]
[327923030,1716640237935,-2384.56598043,0.00012989,2]
[327923031,1716640237945,-1275.9951065,0.00012989,2]
[327923032,1716640237954,-820.8084455,0.00012989,2]
[327923033,1716640237965,-4080.256066,0.00012989,2]
[327923034,1716640237975,-4865.94,0.0001299,2]
[327923035,1716640237984,-381.2659396,0.0001299,2]
[327923036,1716640237994,-412.9352571,0.0001299,2]
[327923037,1716640238003,-1920.56,0.00012991,2]
[327923038,1716640238013,-873.126,0.00012991,2]
[327923039,1716640238022,-373.5349348,0.00012991,2]
[327923041,1716640238032,-365.80393,0.00012991,2]
[327923043,1716640238041,-358.0729252,0.00012991,2]
[327923045,1716640238050,-350.3419204,0.00012991,2]
[327923047,1716640238059,-404.5620873,0.00012991,2]
[327923048,1716640238070,-396.1889175,0.00012991,2]
[327923050,1716640238079,-387.8157477,0.00012991,2]
[327923052,1716640238089,-379.4425778,0.00012991,2]
[327923054,1716640238109,-16322.4171103,0.00012991,2]
[327923055,1716640238120,-15984.5941291,0.00012991,2]
[327923056,1716640238130,-15646.7711479,0.00012991,2]
[327923057,1716640238140,-15308.9481668,0.00012991,2]
[327923059,1716640238150,-1250.1215016,0.00012991,2]
[327923060,1716640238160,-1224.2478966,0.00012991,2]
[327923061,1716640238170,-1198.3742916,0.00012991,2]
[327923062,1716640238180,-1172.5006866,0.00012991,2]